[Event "ESTCC 50 2019"]
[Site "Mali Losinj"]
[Date "2019.09.18"]
[Round "1.16"]
[White "Spacek, Petr"]
[Black "Leib, Britta"]
[Result "1-0"]
[ECO "E12"]
[WhiteElo "2352"]
[BlackElo "1883"]
[Annotator "NA"]
[PlyCount "99"]
[EventDate "2019.09.18"]
[EventType "team-tourn"]
[EventCountry "CRO"]
[SourceTitle "playchess.com"]
[Source "ChessBase"]
[SourceQuality "1"]
[WhiteTeam "Czech Republic"]
[BlackTeam "Germany"]
[WhiteTeamCountry "CZE"]
[BlackTeamCountry "GER"]
[TimeControl "40/5400+30:1800+30"]

1. d4 {[%emt 0:00:30]} Nf6 {[%emt 0:00:30]} 2. c4 {[%emt 0:00:30]} e6 {[%emt 0:00:30]} 3. Nc3 {[%emt 0:00:30]} b6 {[%emt 0:01:30]} 4. a3 {[%emt 0:11:30]} Bb7 {[%emt 0:05:30]} 5. Bg5 {[%emt 0:01:30]} Be7 {[%emt 0:04:30]} 6. Nf3 {[%emt 0:03:30]} O-O {[%emt 0:03:30]} 7. Qc2 {[%emt 0:03:30]} d5 {[%emt 0:04:30]} 8. cxd5 {[%emt 0:02:30]} exd5 {[%emt 0:04:30]} 9. e3 {[%emt 0:01:30]} Nbd7 {[%emt 0:02:30]} 10. Be2 {[%emt 0:00:30]} c5 {[%emt 0:07:30]} 11. O-O {[%emt 0:00:30]} h6 {[%emt 0:02:30]} 12. Bf4 {[%emt 0:02:30]} Ne4 {[%emt 0:11:30]} 13. dxc5 {[%emt 0:05:30]} Nxc3 {[%emt 0:03:30]} 14. Qxc3 {[%emt 0:04:30]} Bf6 {[%emt 0:01:30]} 15. Qc2 {[%emt 0:08:30]} Nxc5 {[%emt 0:03:30]} 16. Nd4 {[%emt 0:11:30]} Ne6 {[%emt 0:13:30]} 17. Nxe6 {[%emt 0:02:30]} fxe6 {[%emt 0:00:00]} 18. Rac1 {[%emt 0:01:30]} Rc8 {[%emt 0:10:07]} 19. Qd2 {[%emt 0:03:30]} Qe7 {[%emt 0:00:51]} 20. b4 {[%emt 0:01:30]} Rfd8 {[%emt 0:02:38]} 21. h3 {[%emt 0:05:30]} Rxc1 {[%emt 0:08:06]} 22. Rxc1 {[%emt 0:00:30]} Rc8 {[%emt 0:03:34]} 23. Rxc8+ {[%emt 0:02:30]} Bxc8 {[%emt 0:00:30]} 24. Qc2 {[%emt 0:00:00]} Bb7 {[%emt 0:02:53]} 25. Qc7 {[%emt 0:17:42]} Qxc7 {[%emt 0:01:38]} 26. Bxc7 {[%emt 0:00:08]} Bb2 {[%emt 0:00:32]} 27. a4 {[%emt 0:00:17]} Bc3 {[%emt 0:00:21]} 28. b5 {[%emt 0:00:13]} Kf7 {[%emt 0:00:24]} 29. Bb8 {[%emt 0:00:12]} Ke7 {[%emt 0:00:48]} 30. Bxa7 {[%emt 0:00:11]} Ba5 {[%emt 0:00:08]} 31. Bb8 {[%emt 0:00:07]} Bc3 {[%emt 0:00:17]} 32. Bc7 {[%emt 0:00:13]} Ba5 {[%emt 0:00:23]} 33. Be5 {[%emt 0:00:13]} Kf7 {[%emt 0:00:17]} 34. f4 {[%emt 0:00:59]} g6 {[%emt 0:00:34]} 35. g4 {[%emt 0:00:41]} Bc8 {[%emt 0:00:44]} 36. Kf2 {[%emt 0:00:39]} Bd7 {[%emt 0:00:50]} 37. h4 {[%emt 0:01:10]} Bc8 {[%emt 0:00:48]} 38. Bf3 {[%emt 0:00:50]} Bd7 {[%emt 0:01:00]} 39. Ke2 {[%emt 0:00:19]} Bb4 {[%emt 0:00:28]} 40. Kd3 {[%emt 0:01:46]} Be1 {[%emt 0:00:34]} 41. Bd4 {[%emt 0:04:20]} Ba5 {[%emt 0:03:05]} 42. h5 {[%emt 0:03:30]} Be8 {[%emt 0:04:30]} 43. e4 {[%emt 0:02:30]} dxe4+ {[%emt 0:07:52]} 44. Bxe4 {[%emt 0:00:30]} gxh5 {[%emt 0:00:23]} 45. gxh5 {[%emt 0:00:00]} Kg8 {[%emt 0:00:05]} 46. Bf3 {[%emt 0:00:00]} Bf7 {[%emt 0:01:25]} 47. Bc3 {[%emt 0:00:30]} Bxc3 {[%emt 0:02:49]} 48. Kxc3 {[%emt 0:00:30]} Be8 {[%emt 0:00:04]} 49. Bc6 {[%emt 0:02:30]} Bxh5 {[%emt 0:02:48]} 50. a5 {[%emt 0:00:30]} 1-0

[Event "ESTCC 50 2019"]
[Site "Mali Losinj"]
[Date "2019.09.18"]
[Round "1.17"]
[White "Ledger, Andrew J"]
[Black "Ponce Navalon, Jose"]
[Result "1-0"]
[ECO "A21"]
[WhiteElo "2343"]
[BlackElo "2024"]
[Annotator "NA"]
[PlyCount "103"]
[EventDate "2019.09.18"]
[EventType "team-tourn"]
[EventCountry "CRO"]
[SourceTitle "playchess.com"]
[Source "ChessBase"]
[SourceQuality "1"]
[WhiteTeam "England"]
[BlackTeam "Spain"]
[WhiteTeamCountry "ENG"]
[BlackTeamCountry "ESP"]
[TimeControl "40/5400+30:1800+30"]

1. c4 {[%emt 0:00:30]} g6 {[%emt 0:00:30]} 2. g3 {[%emt 0:00:30]} Bg7 {[%emt 0:00:00]} 3. Bg2 {[%emt 0:00:30]} e5 {[%emt 0:00:00]} 4. Nc3 {[%emt 0:00:30]} f5 {[%emt 0:01:30]} 5. d3 {[%emt 0:00:30]} Nf6 {[%emt 0:00:30]} 6. e4 {[%emt 0:01:30]} fxe4 {[%emt 0:05:30]} 7. dxe4 {[%emt 0:01:30]} d6 {[%emt 0:07:30]} 8. Nge2 {[%emt 0:05:30]} O-O {[%emt 0:02:30]} 9. O-O {[%emt 0:01:30]} Be6 {[%emt 0:02:30]} 10. b3 {[%emt 0:04:30]} Qc8 {[%emt 0:03:30]} 11. Nd5 {[%emt 0:06:30]} Nxd5 {[%emt 0:01:30]} 12. cxd5 {[%emt 0:01:30]} Bh3 {[%emt 0:00:30]} 13. Be3 {[%emt 0:02:30]} Bxg2 {[%emt 0:08:30]} 14. Kxg2 {[%emt 0:00:00]} a5 {[%emt 0:00:30]} 15. Rc1 {[%emt 0:03:00]} Rf7 {[%emt 0:05:30]} 16. Nc3 {[%emt 0:10:30]} Na6 {[%emt 0:04:30]} 17. Qe2 {[%emt 0:07:30]} Qf8 {[%emt 0:10:30]} 18. Rfd1 {[%emt 0:06:30]} Bh6 {[%emt 0:04:30]} 19. a3 {[%emt 0:07:30]} Nc5 {[%emt 0:04:30]} 20. Rb1 {[%emt 0:01:30]} Bxe3 {[%emt 0:01:30]} 21. Qxe3 {[%emt 0:01:30]} Nd7 {[%emt 0:04:30]} 22. Nb5 {[%emt 0:05:30]} Nf6 {[%emt 0:00:30]} 23. f3 {[%emt 0:00:30]} Nh5 {[%emt 0:00:30]} 24. Rbc1 {[%emt 0:05:30]} Qg7 {[%emt 0:01:30]} 25. Rc3 {[%emt 0:03:30]} Raf8 {[%emt 0:06:30]} 26. Rdc1 {[%emt 0:05:41]} c6 {[%emt 0:05:03]} 27. dxc6 {[%emt 0:02:38]} bxc6 {[%emt 0:00:11]} 28. Nxd6 {[%emt 0:01:40]} Rxf3 {[%emt 0:00:16]} 29. Qxf3 {[%emt 0:05:36]} Rxf3 {[%emt 0:00:04]} 30. Rxf3 {[%emt 0:00:01]} Qd7 {[%emt 0:00:28]} 31. Rd1 {[%emt 0:02:05]} Qg4 {[%emt 0:01:19]} 32. Rdf1 {[%emt 0:01:26]} Nf4+ {[%emt 0:00:29]} 33. Kh1 {[%emt 0:00:12]} Ne6 {[%emt 0:01:12]} 34. Ne8 {[%emt 0:01:53]} Qg5 {[%emt 0:02:26]} 35. h4 {[%emt 0:01:15]} Qe7 {[%emt 0:00:26]} 36. Nf6+ {[%emt 0:00:15]} Kg7 {[%emt 0:01:18]} 37. h5 {[%emt 0:01:09]} Nf4 {[%emt 0:02:54]} 38. Ng4 {[%emt 0:02:18]} Nxh5 {[%emt 0:00:54]} 39. Kg2 {[%emt 0:00:47]} Qxa3 {[%emt 0:04:26]} 40. Rf7+ {[%emt 0:00:40]} Kg8 {[%emt 0:00:00]} 41. Nh6+ {[%emt 0:12:55]} Kh8 {[%emt 0:00:34]} 42. Rb7 {[%emt 0:00:42]} Qb2+ {[%emt 0:06:30]} 43. Rf2 {[%emt 0:03:54]} Nf4+ {[%emt 0:00:30]} 44. gxf4 {[%emt 0:00:11]} Qd4 {[%emt 0:00:00]} 45. Nf7+ {[%emt 0:03:38]} Kg8 {[%emt 0:00:00]} 46. Ng5 {[%emt 0:01:42]} Qd1 {[%emt 0:00:30]} 47. Rb8+ {[%emt 0:00:25]} Kg7 {[%emt 0:00:30]} 48. Rb7+ {[%emt 0:00:02]} Kg8 {[%emt 0:00:00]} 49. Nf3 {[%emt 0:02:43]} Qd8 {[%emt 0:00:00]} 50. Rd2 {[%emt 0:01:32]} Qc8 {[%emt 0:00:30]} 51. Rdd7 {[%emt 0:00:12]} exf4 {[%emt 0:00:30]} 52. Rg7+ {[%emt 0:00:34]} 1-0

[Event "ESTCC 50 2019"]
[Site "Mali Losinj"]
[Date "2019.09.18"]
[Round "1.18"]
[White "Pastor Alonso De Prado, Alberto"]
[Black "Ledger, Dave J"]
[Result "1-0"]
[ECO "C48"]
[WhiteElo "2010"]
[BlackElo "2134"]
[Annotator "NA"]
[PlyCount "71"]
[EventDate "2019.09.18"]
[EventType "team-tourn"]
[EventCountry "CRO"]
[SourceTitle "playchess.com"]
[Source "ChessBase"]
[SourceQuality "1"]
[WhiteTeam "Spain"]
[BlackTeam "England"]
[WhiteTeamCountry "ESP"]
[BlackTeamCountry "ENG"]
[TimeControl "40/5400+30:1800+30"]

1. e4 {[%emt 0:00:30]} e5 {[%emt 0:00:30]} 2. Nf3 {[%emt 0:00:30]} Nc6 {[%emt 0:00:00]} 3. Nc3 {[%emt 0:00:30]} Nf6 {[%emt 0:01:00]} 4. Bb5 {[%emt 0:00:30]} Bd6 {[%emt 0:00:30]} 5. Bxc6 {[%emt 0:00:30]} dxc6 {[%emt 0:00:30]} 6. d4 {[%emt 0:00:00]} Bb4 {[%emt 0:02:30]} 7. O-O {[%emt 0:03:00]} Bg4 {[%emt 0:02:30]} 8. dxe5 {[%emt 0:10:30]} Bxc3 {[%emt 0:04:30]} 9. exf6 {[%emt 0:05:30]} Bxf6 {[%emt 0:03:30]} 10. Qxd8+ {[%emt 0:05:30]} Rxd8 {[%emt 0:01:30]} 11. Bf4 {[%emt 0:00:30]} Bxf3 {[%emt 0:11:30]} 12. gxf3 {[%emt 0:00:00]} g5 {[%emt 0:03:30]} 13. Be3 {[%emt 0:07:00]} Rg8 {[%emt 0:16:30]} 14. Rfd1 {[%emt 0:03:30]} b6 {[%emt 0:00:30]} 15. Rxd8+ {[%emt 0:02:30]} Kxd8 {[%emt 0:00:30]} 16. Rd1+ {[%emt 0:00:00]} Kc8 {[%emt 0:02:30]} 17. b3 {[%emt 0:01:00]} Be5 {[%emt 0:00:30]} 18. h3 {[%emt 0:06:30]} c5 {[%emt 0:03:30]} 19. Kf1 {[%emt 0:03:30]} f6 {[%emt 0:03:30]} 20. Ke2 {[%emt 0:11:30]} Rg6 {[%emt 0:00:30]} 21. h4 {[%emt 0:03:30]} c6 {[%emt 0:06:30]} 22. Rg1 {[%emt 0:01:30]} Bd4 {[%emt 0:14:30]} 23. hxg5 {[%emt 0:05:30]} Bxe3 {[%emt 0:00:30]} 24. Kxe3 {[%emt 0:04:30]} fxg5 {[%emt 0:00:30]} 25. Rh1 {[%emt 0:00:30]} h6 {[%emt 0:00:30]} 26. f4 {[%emt 0:00:30]} gxf4+ {[%emt 0:03:19]} 27. Kxf4 {[%emt 0:00:30]} Rf6+ {[%emt 0:00:49]} 28. Ke3 {[%emt 0:00:30]} Rg6 {[%emt 0:00:58]} 29. Rh3 {[%emt 0:06:48]} Kd7 {[%emt 0:01:05]} 30. Rg3 {[%emt 0:00:29]} Re6 {[%emt 0:07:12]} 31. Rg7+ {[%emt 0:01:03]} Kd6 {[%emt 0:00:08]} 32. c4 {[%emt 0:00:30]} a5 {[%emt 0:00:34]} 33. f4 {[%emt 0:00:14]} Re8 {[%emt 0:00:07]} 34. e5+ {[%emt 0:00:53]} Ke6 {[%emt 0:00:12]} 35. Ke4 {[%emt 0:00:15]} Rh8 {[%emt 0:00:06]} 36. f5# {[%emt 0:01:32]} 1-0

[Event "ESTCC 50 2019"]
[Site "Mali Losinj"]
[Date "2019.09.18"]
[Round "1.19"]
[White "Nelson, Jonathan P"]
[Black "Ruiz Bellon, Manuel"]
[Result "1-0"]
[ECO "D03"]
[WhiteElo "2183"]
[BlackElo "1973"]
[Annotator "NA"]
[PlyCount "51"]
[EventDate "2019.09.18"]
[EventType "team-tourn"]
[EventCountry "CRO"]
[SourceTitle "playchess.com"]
[Source "ChessBase"]
[SourceQuality "1"]
[WhiteTeam "England"]
[BlackTeam "Spain"]
[WhiteTeamCountry "ENG"]
[BlackTeamCountry "ESP"]
[TimeControl "40/5400+30:1800+30"]

1. d4 {[%emt 0:00:30]} Nf6 {[%emt 0:00:30]} 2. Nf3 {[%emt 0:00:30]} e6 {[%emt 0:00:00]} 3. Bg5 {[%emt 0:00:30]} c5 {[%emt 0:01:00]} 4. e3 {[%emt 0:00:30]} h6 {[%emt 0:00:30]} 5. Bh4 {[%emt 0:00:30]} Nc6 {[%emt 0:01:30]} 6. Nbd2 {[%emt 0:01:30]} d5 {[%emt 0:02:30]} 7. c3 {[%emt 0:00:30]} cxd4 {[%emt 0:01:30]} 8. exd4 {[%emt 0:00:30]} Be7 {[%emt 0:03:30]} 9. Bd3 {[%emt 0:00:30]} O-O {[%emt 0:02:30]} 10. Ne5 {[%emt 0:05:30]} Nxe5 {[%emt 0:04:30]} 11. dxe5 {[%emt 0:00:30]} Nd7 {[%emt 0:00:30]} 12. Bg3 {[%emt 0:05:30]} d4 {[%emt 0:17:30]} 13. cxd4 {[%emt 0:09:30]} Qb6 {[%emt 0:00:30]} 14. Nc4 {[%emt 0:04:30]} Bb4+ {[%emt 0:02:30]} 15. Ke2 {[%emt 0:02:30]} Qc6 {[%emt 0:05:30]} 16. Qb3 {[%emt 0:05:30]} a5 {[%emt 0:05:30]} 17. a3 {[%emt 0:01:30]} Be7 {[%emt 0:00:30]} 18. Ne3 {[%emt 0:01:30]} f5 {[%emt 0:08:30]} 19. Nxf5 {[%emt 0:17:30]} Bg5 {[%emt 0:02:30]} 20. h4 {[%emt 0:11:30]} a4 {[%emt 0:01:30]} 21. Qa2 {[%emt 0:01:30]} Bd8 {[%emt 0:00:30]} 22. Rac1 {[%emt 0:05:30]} Qxg2 {[%emt 0:09:30]} 23. Qxe6+ {[%emt 0:03:57]} Kh8 {[%emt 0:03:30]} 24. Qg6 {[%emt 0:03:33]} Rxf5 {[%emt 0:02:30]} 25. Qxf5 {[%emt 0:00:39]} Nf6 {[%emt 0:01:30]} 26. Rxc8 {[%emt 0:00:11]} 1-0

[Event "ESTCC 50 2019"]
[Site "Mali Losinj"]
[Date "2019.09.18"]
[Round "1.20"]
[White "Lopez de Turiso, Jose Angel"]
[Black "Ledger, Stephen C"]
[Result "0-1"]
[ECO "A45"]
[WhiteElo "1945"]
[BlackElo "2000"]
[Annotator "NA"]
[PlyCount "100"]
[EventDate "2019.09.18"]
[EventType "team-tourn"]
[EventCountry "CRO"]
[SourceTitle "playchess.com"]
[Source "ChessBase"]
[SourceQuality "1"]
[WhiteTeam "Spain"]
[BlackTeam "England"]
[WhiteTeamCountry "ESP"]
[BlackTeamCountry "ENG"]
[TimeControl "40/5400+30:1800+30"]

1. d4 {[%emt 0:00:30]} Nf6 {[%emt 0:00:30]} 2. Bg5 {[%emt 0:00:30]} Ne4 {[%emt 0:01:30]} 3. Be3 {[%emt 0:00:30]} d5 {[%emt 0:05:30]} 4. f3 {[%emt 0:00:30]} Nf6 {[%emt 0:00:30]} 5. Bf2 {[%emt 0:03:30]} c6 {[%emt 0:01:30]} 6. c3 {[%emt 0:06:30]} Bf5 {[%emt 0:02:30]} 7. Nd2 {[%emt 0:02:30]} Nbd7 {[%emt 0:03:30]} 8. g4 {[%emt 0:04:30]} Bg6 {[%emt 0:02:30]} 9. h4 {[%emt 0:01:30]} h6 {[%emt 0:05:30]} 10. Bg3 {[%emt 0:02:30]} e6 {[%emt 0:03:30]} 11. Nh3 {[%emt 0:01:30]} Nb6 {[%emt 0:05:30]} 12. e3 {[%emt 0:04:30]} Bd6 {[%emt 0:03:30]} 13. Be5 {[%emt 0:11:30]} Qc7 {[%emt 0:07:30]} 14. h5 {[%emt 0:06:30]} Bh7 {[%emt 0:03:30]} 15. f4 {[%emt 0:02:30]} Bxe5 {[%emt 0:04:30]} 16. dxe5 {[%emt 0:05:30]} Ne4 {[%emt 0:03:30]} 17. Nxe4 {[%emt 0:00:30]} Bxe4 {[%emt 0:00:30]} 18. Rh2 {[%emt 0:03:30]} O-O-O {[%emt 0:02:30]} 19. Bd3 {[%emt 0:04:30]} Nc4 {[%emt 0:12:30]} 20. Bxc4 {[%emt 0:22:23]} dxc4 {[%emt 0:00:30]} 21. Qa4 {[%emt 0:00:47]} Qb6 {[%emt 0:04:30]} 22. Re2 {[%emt 0:06:11]} Bd3 {[%emt 0:01:30]} 23. Qd1 {[%emt 0:00:58]} Bxe2 {[%emt 0:04:30]} 24. Qxe2 {[%emt 0:00:50]} Rd3 {[%emt 0:00:46]} 25. Kf2 {[%emt 0:01:02]} Rhd8 {[%emt 0:00:41]} 26. Kf3 {[%emt 0:00:13]} Qc5 {[%emt 0:06:46]} 27. Nf2 {[%emt 0:02:38]} Qd5+ {[%emt 0:02:39]} 28. Kg3 {[%emt 0:01:05]} Rd2 {[%emt 0:00:19]} 29. Qf3 {[%emt 0:00:29]} Qxf3+ {[%emt 0:04:08]} 30. Kxf3 {[%emt 0:00:02]} Rxb2 {[%emt 0:00:00]} 31. Ne4 {[%emt 0:00:22]} Kc7 {[%emt 0:00:43]} 32. a4 {[%emt 0:02:26]} Rd5 {[%emt 0:02:11]} 33. Rg1 {[%emt 0:00:17]} b5 {[%emt 0:01:15]} 34. axb5 {[%emt 0:00:30]} cxb5 {[%emt 0:00:13]} 35. g5 {[%emt 0:00:17]} a5 {[%emt 0:01:58]} 36. gxh6 {[%emt 0:01:49]} gxh6 {[%emt 0:00:05]} 37. Rg7 {[%emt 0:00:14]} a4 {[%emt 0:02:09]} 38. Rxf7+ {[%emt 0:00:16]} Kb6 {[%emt 0:00:58]} 39. Rf6 {[%emt 0:00:53]} a3 {[%emt 0:00:42]} 40. Rxe6+ {[%emt 0:00:12]} Kc7 {[%emt 0:02:16]} 41. Ra6 {[%emt 0:03:06]} a2 {[%emt 0:03:11]} 42. e6 {[%emt 0:02:30]} Rd8 {[%emt 0:07:30]} 43. Nf6 {[%emt 0:15:04]} Kb7 {[%emt 0:04:12]} 44. Ra3 {[%emt 0:04:17]} b4 {[%emt 0:01:40]} 45. cxb4 {[%emt 0:01:02]} c3 {[%emt 0:01:57]} 46. e7 {[%emt 0:00:43]} Rh8 {[%emt 0:02:58]} 47. e8=Q {[%emt 0:08:43]} Rxe8 {[%emt 0:00:18]} 48. Nxe8 {[%emt 0:00:05]} c2 {[%emt 0:00:16]} 49. Rc3 {[%emt 0:00:25]} a1=Q {[%emt 0:03:54]} 50. Nd6+ {[%emt 0:00:43]} Kb6 {[%emt 0:02:52]} 0-1

[Event "ESTCC 50 2019"]
[Site "Mali Losinj"]
[Date "2019.09.18"]
[Round "1.21"]
[White "Lauritzen, Einar"]
[Black "Fucak, Emilio Milko"]
[Result "1/2-1/2"]
[ECO "A30"]
[WhiteElo "1990"]
[BlackElo "2192"]
[Annotator "NA"]
[PlyCount "79"]
[EventDate "2019.09.18"]
[EventType "team-tourn"]
[EventCountry "CRO"]
[SourceTitle "playchess.com"]
[Source "ChessBase"]
[SourceQuality "1"]
[WhiteTeam "Norway"]
[BlackTeam "Croatia"]
[WhiteTeamCountry "NOR"]
[BlackTeamCountry "CRO"]
[TimeControl "40/5400+30:1800+30"]

1. d4 {[%emt 0:04:30]} Nf6 {[%emt 0:00:30]} 2. Nf3 {[%emt 0:00:30]} b6 {[%emt 0:01:30]} 3. g3 {[%emt 0:00:30]} Bb7 {[%emt 0:00:00]} 4. Bg2 {[%emt 0:00:30]} c5 {[%emt 0:00:00]} 5. O-O {[%emt 0:04:30]} cxd4 {[%emt 0:00:30]} 6. Qxd4 {[%emt 0:00:30]} g6 {[%emt 0:01:30]} 7. c4 {[%emt 0:03:30]} Bg7 {[%emt 0:00:30]} 8. Nc3 {[%emt 0:01:30]} O-O {[%emt 0:00:30]} 9. Qh4 {[%emt 0:01:30]} d6 {[%emt 0:03:30]} 10. Bh6 {[%emt 0:01:30]} Nbd7 {[%emt 0:00:30]} 11. Bxg7 {[%emt 0:13:30]} Kxg7 {[%emt 0:00:30]} 12. Qd4 {[%emt 0:00:30]} Rc8 {[%emt 0:06:30]} 13. Rfd1 {[%emt 0:02:30]} Re8 {[%emt 0:08:30]} 14. b3 {[%emt 0:08:30]} Qc7 {[%emt 0:04:30]} 15. Ne1 {[%emt 0:11:30]} Kg8 {[%emt 0:03:30]} 16. Bxb7 {[%emt 0:07:30]} Qxb7 {[%emt 0:00:30]} 17. Nd5 {[%emt 0:00:30]} a6 {[%emt 0:06:30]} 18. Rac1 {[%emt 0:02:30]} b5 {[%emt 0:13:30]} 19. Nxf6+ {[%emt 0:01:30]} Nxf6 {[%emt 0:00:00]} 20. c5 {[%emt 0:00:30]} dxc5 {[%emt 0:05:00]} 21. Rxc5 {[%emt 0:00:00]} Rxc5 {[%emt 0:00:30]} 22. Qxc5 {[%emt 0:00:00]} Rc8 {[%emt 0:00:30]} 23. Qd4 {[%emt 0:08:30]} Ne4 {[%emt 0:10:30]} 24. f3 {[%emt 0:10:20]} Nc3 {[%emt 0:02:30]} 25. Rd2 {[%emt 0:00:04]} b4 {[%emt 0:02:30]} 26. Kg2 {[%emt 0:00:14]} a5 {[%emt 0:00:30]} 27. e4 {[%emt 0:00:51]} Qb5 {[%emt 0:08:30]} 28. Kf2 {[%emt 0:03:34]} Qh5 {[%emt 0:07:51]} 29. Kg2 {[%emt 0:00:16]} Qg5 {[%emt 0:00:55]} 30. Kf2 {[%emt 0:01:24]} Rc6 {[%emt 0:01:41]} 31. h4 {[%emt 0:01:09]} Qf6 {[%emt 0:03:24]} 32. Qxf6 {[%emt 0:00:21]} Rxf6 {[%emt 0:00:26]} 33. Ke3 {[%emt 0:00:33]} Rd6 {[%emt 0:00:42]} 34. Nd3 {[%emt 0:00:19]} f6 {[%emt 0:00:49]} 35. Rc2 {[%emt 0:00:34]} Kf7 {[%emt 0:00:47]} 36. a4 {[%emt 0:01:42]} h5 {[%emt 0:02:56]} 37. Rd2 {[%emt 0:01:45]} Nb1 {[%emt 0:00:51]} 38. Rd1 {[%emt 0:00:16]} Nc3 {[%emt 0:00:10]} 39. Rd2 {[%emt 0:00:07]} Nb1 {[%emt 0:00:23]} 40. Rd1 {[%emt 0:00:06]} 1/2-1/2

[Event "ESTCC 50 2019"]
[Site "Mali Losinj"]
[Date "2019.09.18"]
[Round "1.22"]
[White "Sulc, Damir"]
[Black "Olsen, Oystein Leif"]
[Result "1/2-1/2"]
[ECO "B35"]
[WhiteElo "2207"]
[BlackElo "1974"]
[Annotator "NA"]
[PlyCount "87"]
[EventDate "2019.09.18"]
[EventType "team-tourn"]
[EventCountry "CRO"]
[SourceTitle "playchess.com"]
[Source "ChessBase"]
[SourceQuality "1"]
[WhiteTeam "Croatia"]
[BlackTeam "Norway"]
[WhiteTeamCountry "CRO"]
[BlackTeamCountry "NOR"]
[TimeControl "40/5400+30:1800+30"]

1. e4 {[%emt 0:00:30]} c5 {[%emt 0:04:30]} 2. Nf3 {[%emt 0:00:00]} Nc6 {[%emt 0:00:00]} 3. d4 {[%emt 0:00:00]} cxd4 {[%emt 0:00:00]} 4. Nxd4 {[%emt 0:00:30]} g6 {[%emt 0:00:30]} 5. Nc3 {[%emt 0:02:30]} Bg7 {[%emt 0:00:30]} 6. Be3 {[%emt 0:01:30]} Nf6 {[%emt 0:00:30]} 7. Bc4 {[%emt 0:04:30]} Qa5 {[%emt 0:02:30]} 8. O-O {[%emt 0:04:30]} O-O {[%emt 0:01:30]} 9. Re1 {[%emt 0:06:30]} d6 {[%emt 0:08:30]} 10. f3 {[%emt 0:09:30]} Bd7 {[%emt 0:08:30]} 11. Nb3 {[%emt 0:05:30]} Qc7 {[%emt 0:02:30]} 12. Bf1 {[%emt 0:01:30]} Ne5 {[%emt 0:02:30]} 13. Nd5 {[%emt 0:11:30]} Nxd5 {[%emt 0:01:30]} 14. exd5 {[%emt 0:00:30]} Nc4 {[%emt 0:02:30]} 15. Bxc4 {[%emt 0:01:30]} Qxc4 {[%emt 0:00:00]} 16. Bd4 {[%emt 0:02:30]} Rfe8 {[%emt 0:14:00]} 17. Bxg7 {[%emt 0:04:30]} Kxg7 {[%emt 0:01:30]} 18. Re4 {[%emt 0:02:30]} Qc7 {[%emt 0:00:30]} 19. Qd4+ {[%emt 0:04:30]} f6 {[%emt 0:01:30]} 20. Rae1 {[%emt 0:00:30]} Bf5 {[%emt 0:02:30]} 21. R4e2 {[%emt 0:02:30]} Kf7 {[%emt 0:01:30]} 22. g4 {[%emt 0:11:30]} Bd7 {[%emt 0:02:30]} 23. Re4 {[%emt 0:02:30]} Qb6 {[%emt 0:03:30]} 24. Qxb6 {[%emt 0:00:48]} axb6 {[%emt 0:00:30]} 25. a3 {[%emt 0:00:26]} Ra4 {[%emt 0:07:30]} 26. Rxa4 {[%emt 0:00:58]} Bxa4 {[%emt 0:00:30]} 27. Nd4 {[%emt 0:00:07]} Rc8 {[%emt 0:01:30]} 28. b3 {[%emt 0:01:28]} Bd7 {[%emt 0:04:30]} 29. a4 {[%emt 0:00:33]} Rc3 {[%emt 0:02:30]} 30. Kf2 {[%emt 0:00:16]} h6 {[%emt 0:05:44]} 31. Re3 {[%emt 0:01:44]} Rc8 {[%emt 0:02:39]} 32. c4 {[%emt 0:01:44]} Rh8 {[%emt 0:01:58]} 33. Kg3 {[%emt 0:04:02]} h5 {[%emt 0:00:13]} 34. h4 {[%emt 0:01:12]} g5 {[%emt 0:01:00]} 35. hxg5 {[%emt 0:03:27]} fxg5 {[%emt 0:02:45]} 36. gxh5 {[%emt 0:00:54]} Rxh5 {[%emt 0:00:15]} 37. Ne6 {[%emt 0:00:44]} Bxe6 {[%emt 0:00:52]} 38. Rxe6 {[%emt 0:00:06]} Rh4 {[%emt 0:00:51]} 39. Re1 {[%emt 0:02:07]} Kf6 {[%emt 0:01:25]} 40. Re6+ {[%emt 0:03:09]} Kf7 {[%emt 0:00:15]} 41. Re1 {[%emt 0:30:05]} Kf6 {[%emt 0:30:11]} 42. Ra1 {[%emt 0:00:51]} Rd4 {[%emt 0:03:10]} 43. a5 {[%emt 0:01:51]} Rd3 {[%emt 0:00:05]} 44. b4 {[%emt 0:00:54]} 1/2-1/2

[Event "ESTCC 50 2019"]
[Site "Mali Losinj"]
[Date "2019.09.18"]
[Round "1.23"]
[White "Ortoft, Kai"]
[Black "Dusper, Hrvoje"]
[Result "0-1"]
[ECO "D02"]
[WhiteElo "1957"]
[BlackElo "2221"]
[Annotator "NA"]
[PlyCount "32"]
[EventDate "2019.09.18"]
[EventType "team-tourn"]
[EventCountry "CRO"]
[SourceTitle "playchess.com"]
[Source "ChessBase"]
[SourceQuality "1"]
[WhiteTeam "Norway"]
[BlackTeam "Croatia"]
[WhiteTeamCountry "NOR"]
[BlackTeamCountry "CRO"]
[TimeControl "40/5400+30:1800+30"]

1. Nf3 {[%emt 0:02:30]} d5 {[%emt 0:01:30]} 2. d4 {[%emt 0:00:30]} Nf6 {[%emt 0:00:00]} 3. Bf4 {[%emt 0:00:30]} Bf5 {[%emt 0:01:00]} 4. e3 {[%emt 0:00:30]} e6 {[%emt 0:00:30]} 5. c4 {[%emt 0:05:30]} Bxb1 {[%emt 0:00:30]} 6. Rxb1 {[%emt 0:02:30]} Bb4+ {[%emt 0:00:30]} 7. Ke2 {[%emt 0:00:30]} Bd6 {[%emt 0:00:30]} 8. Bg5 {[%emt 0:01:30]} Nbd7 {[%emt 0:03:30]} 9. c5 {[%emt 0:02:30]} Be7 {[%emt 0:00:30]} 10. Nd2 {[%emt 0:11:30]} e5 {[%emt 0:00:30]} 11. f3 {[%emt 0:01:30]} O-O {[%emt 0:03:30]} 12. Ke1 {[%emt 0:09:30]} exd4 {[%emt 0:07:30]} 13. exd4 {[%emt 0:01:30]} Nh5 {[%emt 0:00:30]} 14. Be3 {[%emt 0:04:30]} Bg5 {[%emt 0:01:30]} 15. Bf2 {[%emt 0:00:30]} Re8+ {[%emt 0:00:30]} 16. Be2 {[%emt 0:00:30]} Nf4 {[%emt 0:00:30]} 0-1